bitfinex/quotes_ETHUSD_20250220
["timestamp","ask_amount","ask_price","bid_price","bid_amount"]
[1740086566526,7.2845,2745.6,2745.2,3.645]
[1740086566694,3.64221,2745.6,2745.2,3.645]
[1740086566889,3.64243,2745.5,2745.2,3.645]
[1740086567491,3.64245,2745.4,2745.2,3.645]
[1740086567985,6.088464,2745.4,2744.9,0.73110988]
[1740086568203,3.64295,2745.1,2744.8,0.816]
[1740086568403,5.36,2745.4,2744.8,0.816]
[1740086568404,3.64298,2745.0,2744.8,0.816]
[1740086568923,3.64281,2745.2,2744.8,0.816]
[1740086569130,3.64292,2745.1,2744.8,0.816]
[1740086569327,4.40471,2745.3,2744.8,0.816]
[1740086569528,3.64264,2745.3,2744.8,4.45914]
[1740086569734,3.64264,2745.3,2744.8,5.19346093]
[1740086570419,3.64273,2745.2,2744.8,1.55032093]
[1740086570748,7.28552,2745.2,2744.8,1.55032093]
[1740086571098,3.64288,2745.1,2744.8,1.55032093]
[1740086572335,9.00255,2745.4,2744.8,1.55032093]
[1740086572336,3.64268,2745.3,2744.8,1.55032093]
[1740086572927,3.64307,2745.0,2744.8,1.55032093]
[1740086573133,3.64311,2744.9,2744.8,1.55032093]
[1740086575456,3.64285,2745.1,2744.8,1.55032093]
[1740086576251,3.64303,2745.0,2744.8,1.55032093]
[1740086576455,3.64311,2744.9,2744.8,1.55032093]
[1740086576657,3.64275,2745.2,2744.8,2.09625302]
[1740086576874,3.64275,2745.2,2744.9,3.645]
[1740086577888,3.64272,2745.2,2744.9,3.645]
[1740086578641,3.64277,2745.2,2744.9,3.645]
[1740086579071,3.64298,2745.0,2744.9,3.645]
[1740086579296,3.64293,2745.1,2744.9,3.645]
[1740086579462,3.64298,2745.0,2744.9,3.645]
[1740086580582,7.28558,2745.2,2744.9,3.645]
[1740086580809,3.64298,2745.0,2744.9,3.645]
[1740086581013,1.517883,2745.0,2744.5,0.7736]
[1740086581157,3.64351,2744.6,2744.2,1.0366]
[1740086581355,3.64378,2744.4,2744.3,3.646]
[1740086582806,3.64427,2744.1,2743.9,4.7063]
[1740086582969,3.64431,2744.0,2743.9,4.4433]
[1740086583170,3.64431,2744.0,2743.9,3.646]
[1740086584070,3.64431,2744.0,2743.8,8.182]
[1740086584071,3.64444,2743.9,2743.8,8.182]
[1740086586967,7.28874,2744.0,2743.8,8.182]
[1740086587375,7.28874,2744.0,2743.6,0.71343126]
[1740086587769,3.64447,2743.9,2743.6,0.71343126]
[1740086588587,3.64465,2743.8,2743.6,0.71343126]
[1740086588914,3.64447,2743.9,2743.5,3.647]
[1740086589124,3.64483,2743.7,2743.4,0.7973]
[1740086589679,0.364483,2743.7,2743.3,3.647]
[1740086589984,3.64502,2743.5,2743.3,3.647]
[1740086590396,3.64505,2743.5,2743.3,3.647]
[1740086590926,3.64505,2743.5,2743.3,4.35951627]
[1740086591824,4.44186,2743.6,2743.3,4.35951627]
[1740086592531,4.44187,2743.6,2743.3,4.35951627]
[1740086593151,0.797,2743.6,2743.3,4.35951627]
[1740086593310,3.64498,2743.5,2743.3,4.35951627]
[1740086595350,3.64484,2743.6,2743.3,4.35951627]
[1740086596144,3.64473,2743.7,2743.3,4.35951627]
[1740086596352,3.64471,2743.7,2743.3,0.71251627]
[1740086596900,4.4416,2743.8,2743.3,4.35769627]
[1740086597132,5.36,2744.0,2743.5,0.7875]
[1740086597307,5.36,2744.0,2743.9,3.64444]
[1740086598105,5.36,2744.0,2743.8,3.90756]
[1740086598409,5.36,2744.0,2743.8,0.263]
[1740086599397,4.42063,2744.4,2743.8,0.263]
[1740086599596,3.64418,2744.1,2743.8,0.263]
[1740086599838,3.64404,2744.2,2743.8,0.99869442]
[1740086600137,3.64437,2744.0,2743.8,0.99869442]
[1740086600545,3.64415,2744.2,2743.8,0.99869442]
[1740086600760,4.42058,2744.4,2743.9,0.7875]
[1740086600895,3.64381,2744.4,2743.9,4.43184]
[1740086601094,3.64381,2744.4,2743.9,0.7875]
[1740086601337,5.36,2744.5,2743.9,0.7875]
[1740086601338,3.64405,2744.2,2743.9,0.7875]
[1740086601750,3.64431,2744.0,2743.8,0.73569442]
[1740086602539,4.40979,2744.1,2743.8,0.73569442]
[1740086602696,0.7655,2744.1,2743.8,0.73569442]
[1740086602896,3.64415,2744.2,2743.8,0.73569442]
[1740086603359,5.36,2744.5,2743.8,4.38016442]
[1740086603682,3.64386,2744.4,2743.9,4.43217]
[1740086603879,6.1255,2744.5,2744.0,3.64424]
[1740086604089,9.76922,2744.5,2744.0,3.64424]
[1740086604685,6.1255,2744.5,2743.9,0.7878]
[1740086604854,3.64386,2744.4,2743.9,4.43224]
[1740086605244,3.64386,2744.4,2743.9,4.43215]
[1740086605584,6.1255,2744.5,2744.0,3.64427]
[1740086605754,9.76921,2744.5,2744.0,3.64427]
[1740086606685,9.76921,2744.5,2744.1,3.64417]
[1740086607402,9.76921,2744.5,2744.0,3.64431]
[1740086608120,3.64386,2744.4,2743.9,4.43215]
[1740086608492,3.64394,2744.3,2743.9,4.43215]
[1740086609076,3.64386,2744.4,2743.9,0.7878]
[1740086609276,3.64404,2744.3,2743.9,0.7878]
[1740086609506,3.64393,2744.3,2743.9,4.4322]
[1740086610113,3.64393,2744.3,2743.9,0.7878]
[1740086610484,3.64386,2744.4,2743.9,0.7878]
[1740086610684,3.64399,2744.3,2743.9,0.7878]
[1740086610888,3.64409,2744.2,2743.9,0.7878]
[1740086611273,3.64419,2744.1,2743.8,4.38269442]
[1740086612488,3.64419,2744.1,2743.8,0.73569442]
[1740086613089,3.64419,2744.1,2743.8,0.99869442]
[1740086613617,3.64438,2744.0,2743.8,0.99869442]
[1740086613908,3.64444,2743.9,2743.8,0.73569442]
[1740086614109,3.64464,2743.8,2743.4,0.753]
[1740086614325,3.64472,2743.7,2743.4,1.016]
[1740086615516,3.64449,2743.9,2743.3,7.29214]
[1740086615517,4.43821,2744.0,2743.3,0.73092439]
[1740086615726,3.64491,2743.6,2743.3,0.73092439]
[1740086615880,3.64473,2743.7,2743.3,0.73092439]
[1740086617221,9.00473,2743.7,2743.3,0.73092439]
[1740086618218,5.36,2743.7,2743.3,4.37613439]
[1740086618895,5.36,2743.7,2743.3,0.73092439]
[1740086620418,5.36,2743.7,2743.4,3.64504]
[1740086620780,5.36,2743.7,2743.6,3.64484]
[1740086621740,5.36,2743.7,2743.6,4.45424]
[1740086622289,5.36,2743.7,2743.6,0.8094]
[1740086623126,3.64441,2744.0,2743.6,0.8094]
[1740086624231,0.7644,2744.1,2743.6,4.45413]
[1740086624397,0.7644,2744.1,2743.7,3.64458]
[1740086624726,4.4055,2744.3,2743.8,3.64452]
[1740086624926,9.00388,2744.4,2743.6,4.45422]
[1740086625129,3.64411,2744.2,2743.6,5.24139484]
[1740086625434,3.64419,2744.1,2743.7,3.647]
[1740086626434,4.4621,2743.9,2743.5,0.7984]
[1740086626632,4.4621,2743.9,2743.6,0.72139185]
[1740086626933,3.64465,2743.8,2743.6,0.72139185]
[1740086627132,4.091035,2743.7,2743.3,0.7924]
[1740086627336,3.64481,2743.7,2743.3,0.7924]
[1740086628235,3.64481,2743.7,2743.4,0.71263621]
[1740086629838,3.64465,2743.8,2743.4,0.71263621]
[1740086631037,3.64465,2743.8,2743.4,4.35772621]
[1740086631537,3.64458,2743.8,2743.4,4.35772621]
[1740086631741,3.64472,2743.7,2743.4,0.71263621]
[1740086633502,3.64458,2743.8,2743.4,0.71263621]
[1740086634117,3.64472,2743.7,2743.4,0.71263621]
[1740086634746,3.64458,2743.8,2743.4,0.71263621]
[1740086634927,3.64458,2743.8,2743.4,4.35770621]
[1740086635308,3.64458,2743.8,2743.4,0.71263621]
[1740086635626,3.64471,2743.7,2743.4,0.71263621]
[1740086635832,7.28925,2743.8,2743.4,0.71263621]
[1740086636338,7.28928,2743.8,2743.4,0.71263621]
[1740086636640,3.64475,2743.7,2743.4,0.71263621]
[1740086638048,3.64458,2743.8,2743.4,0.71263621]
[1740086638615,3.64483,2743.7,2743.4,0.71263621]
[1740086640552,3.0,2744.0,2743.6,3.6448]
[1740086640756,3.0,2744.0,2743.7,0.8258]
[1740086641053,6.64439,2744.0,2743.7,0.8258]
[1740086641547,3.0,2744.0,2743.7,0.8258]
[1740086641756,6.64435,2744.0,2743.7,0.8258]
[1740086642254,3.0,2744.0,2743.7,0.8258]
[1740086642430,6.64437,2744.0,2743.7,0.8258]
[1740086642630,3.64448,2743.9,2743.7,0.8258]
[1740086642831,3.64446,2743.9,2743.7,0.8258]
[1740086643744,6.64438,2744.0,2743.7,0.8258]
[1740086645045,3.0,2744.0,2743.7,0.8258]
[1740086645447,6.64433,2744.0,2743.7,0.8258]
[1740086645646,3.64445,2743.9,2743.7,0.8258]
[1740086646964,3.64445,2743.9,2743.5,0.8264]
[1740086646965,3.64468,2743.8,2743.5,0.8264]
[1740086647164,3.64482,2743.7,2743.4,0.71263621]
[1740086647329,4.4036,2743.5,2743.0,0.8264]
[1740086647527,3.64551,2743.1,2742.7,0.8264]
[1740086647763,3.64551,2743.1,2742.8,0.263]
[1740086648692,3.64551,2743.1,2742.7,1.0894]
[1740086649031,3.64551,2743.1,2743.0,0.71259461]
[1740086649352,3.64566,2743.0,2742.6,0.8264]
[1740086649554,3.64566,2743.0,2742.6,1.0894]
[1740086649967,0.7586,2743.1,2742.5,8.187]
[1740086650148,3.64598,2742.8,2742.5,8.187]
[1740086650678,0.7586,2743.1,2742.5,8.91294618]
[1740086650679,3.64577,2742.9,2742.5,8.91294618]
[1740086650855,4.40419,2743.1,2742.5,8.91294618]
[1740086651047,4.40419,2743.1,2742.6,3.64613]
[1740086651434,3.7586,2743.1,2742.5,8.91294618]
[1740086651634,3.64564,2743.0,2742.5,12.55914618]
[1740086652072,7.29136,2743.0,2742.5,12.55914618]
[1740086652377,7.29136,2743.0,2742.5,8.91294618]
[1740086652592,3.64564,2743.0,2742.5,8.91294618]
[1740086652881,3.7586,2743.1,2742.5,8.91294618]
[1740086653069,7.29145,2743.0,2742.5,8.91294618]
[1740086653393,3.6457,2743.0,2742.5,8.91294618]
[1740086653582,3.7586,2743.1,2742.6,3.64617]
[1740086653786,3.0,2743.1,2742.7,0.7567]
[1740086653966,3.0,2743.1,2742.8,3.64583]
[1740086654887,3.0,2743.1,2742.7,0.7567]
[1740086655088,3.0,2743.1,2742.8,3.64586]
[1740086655386,5.36,2743.2,2742.8,3.64586]
[1740086655688,5.36,2743.2,2742.9,3.64566]
[1740086655855,7.43397,2743.3,2742.8,3.64586]
[1740086657810,3.64538,2743.2,2742.8,3.90886]
[1740086658106,3.64538,2743.2,2742.8,0.263]
[1740086659004,0.7887,2743.3,2742.8,3.90883]
[1740086659005,7.43397,2743.3,2742.8,3.90883]
[1740086659297,6.64511,2743.4,2743.0,3.64556]
[1740086659605,3.0,2743.4,2743.1,4.47084]
[1740086659807,5.36,2743.5,2743.1,0.8254]
[1740086660000,5.36,2743.5,2743.2,3.64537]
[1740086660200,5.36,2743.5,2743.3,3.64516]
[1740086660383,3.6446,2743.8,2743.3,4.092216]
[1740086660705,3.64473,2743.7,2743.4,0.7833]
[1740086660912,3.6446,2743.8,2743.4,0.7833]
[1740086661687,0.7887,2743.9,2743.1,4.4288]
[1740086661688,3.6449,2743.6,2743.1,4.4288]
[1740086662414,3.6449,2743.6,2743.4,0.73616989]
[1740086663316,0.8304,2743.8,2743.4,0.73616989]
[1740086663491,3.64477,2743.7,2743.4,0.73616989]
[1740086666616,0.8304,2743.8,2743.4,0.73616989]
[1740086666779,3.0,2744.0,2743.6,3.64473]
[1740086667112,5.36,2744.1,2743.8,3.6445]
[1740086667320,5.36,2744.1,2743.8,7.28899]
[1740086667680,5.36,2744.1,2743.8,3.64449]
[1740086668214,5.36,2744.1,2743.9,3.64444]
[1740086668522,5.36,2744.1,2743.7,4.46463]
[1740086668680,5.36,2744.1,2743.7,5.301867]
[1740086670595,6.64407,2744.2,2743.7,5.301867]
[1740086670950,3.64407,2744.2,2743.7,5.301867]
[1740086671125,3.0,2744.5,2744.0,3.64423]
[1740086671426,6.64373,2744.5,2744.0,3.64423]
[1740086671646,3.64381,2744.4,2744.0,3.64423]
[1740086671943,3.0,2744.5,2744.1,0.7978]
[1740086672240,6.64367,2744.5,2744.1,0.7978]
[1740086673918,10.2874,2744.5,2744.1,0.7978]
[1740086674225,6.64367,2744.5,2744.1,0.7978]
[1740086674732,10.28745,2744.5,2744.1,0.7978]
[1740086674935,6.64367,2744.5,2744.1,0.7978]
[1740086675433,3.6438,2744.4,2744.1,0.7978]
[1740086675815,10.28744,2744.5,2744.1,0.7978]
[1740086676732,6.64367,2744.5,2744.1,0.7978]
[1740086676937,3.64367,2744.5,2744.2,0.59042935]
[1740086677139,7.28744,2744.5,2744.2,0.59042935]
[1740086677339,3.64379,2744.4,2744.1,0.7978]
[1740086678904,3.64379,2744.4,2744.0,0.73337053]
[1740086679407,0.8241,2744.6,2744.0,0.73337053]
[1740086679408,3.64405,2744.2,2744.0,0.73337053]
[1740086679910,3.64455,2743.9,2743.2,9.0123]
[1740086680205,3.64524,2743.3,2743.2,8.187]
[1740086680614,4.45494,2743.3,2743.2,8.187]
[1740086680914,3.64564,2743.0,2742.7,0.263]
[1740086681115,3.64564,2743.0,2742.5,3.64629]
[1740086681326,0.8097,2743.3,2742.6,3.64617]
[1740086681532,3.64537,2743.2,2742.6,3.64617]
[1740086682031,3.64537,2743.2,2742.7,0.72982742]
[1740086682237,3.64552,2743.1,2742.7,0.72982742]
[1740086682637,3.64584,2742.9,2742.4,0.8253]
[1740086682816,3.64584,2742.9,2742.4,1.0883]
[1740086683153,7.2917,2742.9,2742.4,1.0883]
[1740086683328,3.64584,2742.9,2742.4,1.0883]
[1740086683524,3.64584,2742.9,2742.4,0.8253]
[1740086683754,3.64605,2742.7,2742.4,0.8253]
[1740086684158,3.64605,2742.7,2742.5,0.74098931]
[1740086684330,3.64605,2742.7,2742.1,0.823]
[1740086684512,3.64605,2742.7,2742.3,0.263]
[1740086684718,0.8072,2742.8,2742.4,0.71523671]
[1740086684719,4.45315,2742.8,2742.4,0.71523671]
[1740086684932,5.36,2743.1,2742.4,0.71523671]
[1740086684933,3.64586,2742.9,2742.4,0.71523671]
[1740086685127,9.81276,2743.1,2742.6,3.64617]
[1740086685465,6.1672,2743.1,2742.5,0.823]
[1740086685632,5.36,2743.1,2742.7,3.64593]
[1740086685997,5.36,2743.1,2742.5,8.11544]
[1740086686262,5.36,2743.1,2742.5,4.46918]
[1740086686263,9.00552,2743.1,2742.5,4.46918]
[1740086686718,12.65111,2743.1,2742.5,4.46918]
[1740086686924,3.6457,2743.0,2742.5,4.46918]
[1740086687227,9.00552,2743.1,2742.6,4.16456167]
[1740086687421,9.00552,2743.1,2742.6,4.16458167]
[1740086688136,3.64565,2743.0,2742.6,0.51844167]
[1740086688355,3.64551,2743.1,2742.6,0.51844167]
[1740086688562,3.64551,2743.1,2742.5,4.46918]
[1740086689525,0.7756,2742.9,2742.4,0.71523671]
[1740086689731,3.64594,2742.8,2742.4,0.97823671]
[1740086689937,4.42139,2742.9,2742.4,4.62466671]
[1740086690667,0.7756,2742.9,2742.5,3.64626]
[1740086690970,3.64571,2743.0,2742.5,3.64626]
[1740086692865,3.64571,2743.0,2742.6,3.64617]
[1740086693377,0.0075,2743.1,2742.6,3.64617]
[1740086693672,3.65302,2743.1,2742.6,3.64617]
[1740086693872,3.64552,2743.1,2742.6,3.64617]
[1740086694176,0.7756,2743.2,2742.8,3.6458]
[1740086694360,4.42105,2743.2,2742.7,4.4359]
[1740086695372,0.7884,2743.4,2742.9,3.6457]
[1740086695876,0.7884,2743.4,2742.8,3.6459]
[1740086696179,4.43351,2743.4,2742.9,4.08925]
[1740086696582,4.43351,2743.4,2742.9,4.82070718]
[1740086696883,3.64533,2743.3,2742.9,1.17503718]
[1740086697041,3.64545,2743.2,2742.9,0.73145718]
[1740086698579,4.43353,2743.4,2742.9,0.73145718]
[1740086698758,3.64527,2743.3,2742.9,4.37721718]
[1740086698959,3.64543,2743.2,2742.9,0.73145718]
[1740086700283,5.36,2743.2,2742.9,0.73145718]
[1740086700487,5.36,2743.2,2742.4,3.90935]
[1740086700488,3.64564,2743.0,2742.4,3.64632]
[1740086700685,3.64592,2742.8,2742.3,4.46546]
[1740086701031,3.64592,2742.8,2742.4,0.74357392]
[1740086701787,3.64585,2742.9,2742.4,4.38994392]
[1740086701967,3.64585,2742.9,2742.5,3.64628]
[1740086703687,3.64585,2742.9,2742.4,4.38999392]
[1740086704485,3.64571,2743.0,2742.5,3.64623]
[1740086704795,4.70678815,2743.1,2742.6,3.64617]
[1740086705504,3.64583,2742.9,2742.4,4.38995392]
[1740086705687,7.29168,2742.9,2742.4,4.38995392]
[1740086705882,3.64594,2742.8,2742.4,4.38995392]
[1740086706598,0.8257,2742.7,2742.4,3.64638]
[1740086707895,4.47175,2742.7,2742.3,1.00401104]
[1740086708060,3.64617,2742.6,2742.3,1.00401104]
[1740086708595,3.64617,2742.6,2742.3,0.74101104]
[1740086709702,3.64617,2742.6,2742.0,3.64689]
[1740086709703,0.811787,2742.6,2742.0,3.64689]
[1740086709913,3.64621,2742.6,2742.0,3.90989]
[1740086710067,3.64621,2742.6,2742.0,3.64689]
[1740086710068,3.64652,2742.4,2742.0,3.64689]
[1740086710394,3.64652,2742.4,2741.7,4.46699]
[1740086710395,3.64671,2742.2,2741.7,4.46699]
[1740086710596,3.0,2742.5,2741.9,1.54889441]
[1740086710801,7.44638,2742.5,2742.0,3.64685]
[1740086712196,3.8,2742.5,2742.2,3.64667]
[1740086712393,3.8,2742.5,2742.1,3.64678]
[1740086712570,5.36,2742.6,2742.5,3.6463]
[1740086712908,0.28017815,2743.1,2742.6,3.6461]
[1740086713086,0.28017815,2743.1,2742.6,7.2922]
[1740086713087,3.7606,2743.0,2742.6,7.2922]
[1740086713271,3.7606,2743.0,2742.6,3.64608]
[1740086713473,3.7606,2743.0,2742.8,3.64583]
[1740086713704,0.7606,2743.0,2742.6,3.64613]
[1740086713901,0.7606,2743.0,2742.7,3.64602]
[1740086714217,5.64017815,2743.1,2742.7,3.64602]
[1740086714409,5.64017815,2743.1,2742.5,3.64622]
[1740086714410,9.28568815,2743.1,2742.5,3.64622]
[1740086714574,0.804,2742.8,2742.3,4.45075]
[1740086714777,3.6461,2742.7,2742.1,4.53097944]
[1740086715008,3.6461,2742.7,2742.2,3.64658]
[1740086715416,0.804,2742.8,2742.3,3.6465]
[1740086715584,0.804,2742.8,2742.4,3.64639]
[1740086716775,0.804,2742.8,2742.3,4.37195025]
[1740086717113,3.64604,2742.7,2742.3,4.37195025]
[1740086717607,0.804,2742.8,2742.4,3.64637]
[1740086718192,6.164,2742.8,2742.4,3.64637]
[1740086718872,6.164,2742.8,2742.3,4.37195025]
[1740086719074,9.80992,2742.8,2742.3,4.37195025]
[1740086719279,9.80992,2742.8,2742.3,4.37191025]
[1740086719481,9.80992,2742.8,2742.4,3.64642]
[1740086719712,6.164,2742.8,2742.4,3.64642]
[1740086719929,6.164,2742.8,2742.4,3.64634]
[1740086720125,5.36,2742.8,2742.4,0.43717903]
[1740086720529,5.36,2742.8,2742.4,4.08354903]
[1740086720698,5.36,2742.8,2742.5,4.41118]
[1740086721227,9.81422,2743.0,2742.5,0.765]
[1740086721412,3.64583,2742.9,2742.4,3.64637]
[1740086721618,3.64583,2742.9,2742.4,3.64635]
[1740086722133,9.81422,2743.0,2742.5,3.6462]
[1740086722313,9.81422,2743.0,2742.4,3.64635]
[1740086722522,3.64581,2742.9,2742.4,3.64635]
[1740086724039,9.81422,2743.0,2742.5,3.64623]
[1740086724424,3.64578,2742.9,2742.5,3.64623]
[1740086726046,13.45999,2743.0,2742.5,3.64623]
[1740086726237,3.64581,2742.9,2742.5,3.64623]
[1740086726834,9.81422,2743.0,2742.5,3.64623]
[1740086727035,9.81422,2743.0,2742.5,3.64622]
[1740086727343,3.64585,2742.9,2742.4,3.64643]
[1740086727753,3.64585,2742.9,2742.4,3.64635]
[1740086728650,3.64585,2742.9,2742.4,3.64634]
[1740086728950,3.64585,2742.9,2742.5,3.64628]
[1740086729252,3.64585,2742.9,2742.4,3.64642]
[1740086729424,3.64598,2742.8,2742.4,3.64642]
[1740086730150,0.7971,2742.7,2742.3,3.64657]
[1740086730315,0.7971,2742.7,2742.3,3.90957]
[1740086736575,7.42387,2742.9,2742.4,3.64631]
[1740086736865,3.64593,2742.8,2742.4,3.64631]
[1740086737018,3.64593,2742.8,2742.3,3.90955]
[1740086738638,3.64593,2742.8,2742.3,7.55602]
[1740086738783,3.64593,2742.8,2742.3,3.90947]
[1740086739081,3.6461,2742.7,2742.3,3.90947]
[1740086741181,3.6461,2742.7,2742.3,3.64647]
[1740086741385,0.8254,2742.5,2742.1,3.64674]
[1740086742378,0.8254,2742.5,2742.1,4.37061017]
[1740086742584,0.8254,2742.5,2742.1,8.01735017]
[1740086743888,0.8254,2742.5,2742.1,4.37051017]
[1740086745899,0.8254,2742.5,2742.1,8.01727017]
[1740086746564,0.8254,2742.5,2742.1,4.37051017]
[1740086747391,4.47173,2742.5,2742.1,4.37051017]
[1740086749353,0.8254,2742.5,2742.1,4.37051017]
[1740086752290,4.47172,2742.5,2742.1,4.37051017]
[1740086753492,4.47172,2742.5,2742.1,3.64674]
[1740086753870,0.8254,2742.5,2742.0,0.263]
[1740086754069,0.8254,2742.5,2742.2,3.64662]
[1740086756194,0.8254,2742.5,2742.0,4.62632018]
[1740086756494,0.8254,2742.5,2742.1,3.64675]
[1740086756698,0.8254,2742.5,2742.2,3.6467]
[1740086760014,0.8254,2742.5,2742.0,0.97946018]
[1740086760212,0.8254,2742.5,2742.3,3.64651]
[1740086761793,5.36,2742.6,2742.3,0.364651]
[1740086762115,0.8285,2743.6,2743.3,3.64511]
[1740086762317,6.1885,2743.6,2743.3,3.64517]
[1740086762517,2.00591154,2743.6,2743.2,3.64526]
[1740086762816,0.8285,2743.6,2743.2,3.64536]
[1740086763018,5.30572991,2743.8,2743.1,1.66113991]
[1740086763019,0.7722,2743.8,2743.1,1.66113991]
[1740086763176,0.7722,2744.0,2743.7,3.6446]
[1740086763377,3.64447,2743.9,2743.3,4.42563]
[1740086763578,3.64457,2743.9,2743.3,4.42563]
[1740086763904,0.97222299,2743.8,2743.3,4.42563]
[1740086764103,1.66113991,2743.4,2742.8,6.0806]
[1740086764303,4.41224,2743.1,2742.8,0.263]
[1740086764489,5.36,2743.5,2743.3,3.64512]
[1740086764697,5.36,2743.5,2743.0,4.45619]
[1740086765185,5.36,2743.5,2743.2,3.64536]
[1740086765384,5.36,2743.5,2743.0,4.45619]
[1740086765385,5.36,2743.5,2743.0,4.45611]
[1740086765584,5.36,2743.5,2743.1,3.64551]
[1740086765901,5.36,2743.5,2743.3,3.64521]
[1740086766105,5.36,2743.5,2743.4,3.64511]
[1740086766718,5.36,2743.5,2743.4,4.46171]
[1740086768703,4.40732,2744.1,2743.4,4.46171]
[1740086769016,3.64454,2743.9,2743.4,0.8166]
[1740086769182,1.276732,2744.0,2743.5,0.71617504]
[1740086769183,3.6446,2743.8,2743.5,0.71617504]
[1740086769385,8.78341613,2744.2,2743.0,0.8166]
[1740086769386,4.40039,2743.7,2743.0,0.8166]
[1740086769696,4.4004,2743.7,2743.1,3.6454]
[1740086769884,3.64489,2743.6,2743.1,3.6454]
[1740086770085,4.4004,2743.7,2743.1,3.6454]
[1740086770086,0.7556,2743.7,2743.1,3.6454]
[1740086770324,3.64492,2743.6,2743.3,0.73959757]
[1740086770522,7.28984,2743.6,2743.3,0.73959757]
[1740086770817,3.64492,2743.6,2743.1,3.9084]
[1740086771419,3.64492,2743.6,2743.2,3.64536]
[1740086771918,0.7556,2743.7,2743.2,3.64536]
[1740086772121,4.40032,2743.7,2743.2,3.64536]
[1740086772425,8.06772,2743.9,2743.4,3.64504]
[1740086772624,4.42315,2743.9,2743.2,2.12862699]
[1740086772926,4.42315,2743.9,2743.2,8.58225099]
[1740086773094,3.64465,2743.8,2743.2,4.93689099]
[1740086773639,4.42315,2743.9,2743.2,4.93689099]
[1740086773796,3.64473,2743.7,2743.2,4.93689099]
[1740086774128,0.7787,2743.9,2743.2,4.93689099]
[1740086774129,4.42325,2743.9,2743.3,4.44163]
[1740086774328,0.7787,2744.1,2743.4,3.64511]
[1740086774527,3.64431,2744.0,2743.4,3.64511]
[1740086774737,3.64431,2744.0,2743.5,3.64496]
[1740086775034,3.64431,2744.0,2743.4,3.64511]
[1740086775035,3.64452,2743.9,2743.3,1.3164891]
[1740086775220,3.64471,2743.7,2743.3,0.7965]
[1740086775531,3.64471,2743.7,2743.4,3.647]
[1740086776229,3.64484,2743.6,2743.2,1.29159099]
[1740086776535,4.42341,2743.7,2743.2,8.58496099]
[1740086776721,4.42341,2743.7,2743.2,4.93696099]
[1740086777233,8.06821,2743.7,2743.2,4.93696099]
[1740086777533,3.64488,2743.6,2743.2,4.93696099]
[1740086777698,3.64488,2743.6,2743.2,8.58496099]
[1740086778031,3.64498,2743.5,2743.2,4.93959099]
[1740086778330,3.64561,2743.1,2742.6,0.7645]
[1740086778509,3.64561,2743.1,2742.9,0.57092519]
[1740086778710,3.64561,2743.1,2742.9,1.30313352]
[1740086779022,7.29124,2743.1,2742.9,1.30313352]
[1740086779217,4.43964,2743.0,2742.9,0.57092519]
[1740086779520,3.64611,2742.7,2742.3,0.7645]
[1740086779831,3.64611,2742.7,2742.6,0.57100662]
[1740086780035,3.64611,2742.7,2742.2,15.74761]
[1740086780238,3.64599,2742.8,2742.3,4.21758886]
[1740086781239,3.64584,2742.9,2742.4,4.37317975]
[1740086781544,3.64584,2742.9,2742.4,0.72676975]
[1740086781913,3.6463,2742.5,2742.4,0.72676975]
[1740086782119,3.6463,2742.5,2742.3,0.57102886]
[1740086782431,4.44018,2742.6,2742.3,0.57102886]
[1740086783536,3.6463,2742.5,2742.3,0.57102886]
[1740086784036,3.64631,2742.5,2742.3,0.57102886]
[1740086784401,7.29271,2742.5,2742.3,0.57102886]
[1740086784606,3.64631,2742.5,2742.3,0.57102886]
[1740086786238,0.794,2742.6,2742.3,0.57102886]
[1740086786814,0.7611,2742.9,2742.3,1.92819105]
[1740086787352,3.64608,2742.7,2742.3,1.92819105]
[1740086787562,3.64603,2742.8,2742.3,9.22375105]
[1740086787763,3.64603,2742.8,2742.3,5.57475105]
[1740086788738,3.6457,2743.0,2742.4,7.29537]
[1740086788952,3.6457,2743.0,2742.4,3.64637]
[1740086789244,3.64591,2742.8,2742.4,1.74101611]
[1740086789426,7.29191,2742.8,2742.4,3.649]
[1740086789826,3.64591,2742.8,2742.4,3.649]
[1740086790246,3.64591,2742.8,2742.4,7.29544]
[1740086790446,3.64578,2742.9,2742.4,7.29544]
[1740086790754,5.36,2743.1,2742.7,3.64603]
[1740086790935,3.64539,2743.2,2742.7,3.64603]
[1740086791175,3.64539,2743.2,2742.8,3.64589]
[1740086791444,3.64551,2743.1,2742.7,3.64603]
[1740086791646,3.64539,2743.2,2742.8,3.6459]
[1740086791848,3.64551,2743.1,2742.5,9.73282]
[1740086792053,3.64551,2743.1,2742.7,3.64602]
[1740086792268,0.8107,2743.4,2742.6,4.96362361]
[1740086792480,4.45563,2743.6,2742.7,4.24001613]
[1740086792654,0.8107,2743.8,2743.2,4.46189]
[1740086792826,0.8107,2743.8,2743.3,3.64516]
[1740086793025,4.45534,2743.8,2743.3,3.64516]
[1740086793224,4.45534,2743.8,2743.2,0.8166]
[1740086793225,3.64481,2743.7,2743.2,0.8166]
[1740086793536,0.8107,2743.8,2743.2,0.8166]
[1740086793867,3.64479,2743.7,2743.2,5.27680161]
[1740086794021,3.64479,2743.7,2743.3,0.73371666]
[1740086794873,3.64486,2743.6,2743.3,0.73371666]
[1740086795491,3.64507,2743.5,2743.3,0.73371666]
[1740086795664,3.64483,2743.7,2743.3,0.73371666]
[1740086795999,3.64491,2743.6,2743.3,0.73371666]
[1740086796300,3.64484,2743.6,2743.3,0.73371666]